bitfinex/quotes_ETHUSD_20250608
["timestamp","ask_amount","ask_price","bid_price","bid_amount"]
[1749402136745,8.83190629,2530.3,2530.0,3.95251454]
[1749402136944,1.674,2530.2,2530.1,3.95241294]
[1749402137140,1.674,2530.2,2529.9,3.95270819]
[1749402137463,1.674,2530.2,2530.1,3.95241294]
[1749402137661,1.674,2530.2,2529.8,6.29372057]
[1749402137890,1.674,2530.2,2530.1,3.95241294]
[1749402139752,1.674,2530.2,2529.9,3.9527254]
[1749402140093,0.70390629,2530.3,2530.2,3.95225673]
[1749402140291,8.83090629,2530.3,2530.2,3.95225673]
[1749402143199,8.83090629,2530.3,2530.1,3.95241294]
[1749402143543,8.83090629,2530.3,2530.2,3.95225673]
[1749402143757,0.70390629,2530.3,2530.2,3.95225673]
[1749402143961,2.37690629,2530.3,2530.2,9.4372773]
[1749402144159,2.37690629,2530.3,2530.2,10.1902773]
[1749402144372,8.82990629,2530.3,2530.2,10.1902773]
[1749402145110,2.37690629,2530.3,2530.2,26.1902773]
[1749402145960,0.70390629,2530.3,2530.2,26.1902773]
[1749402156873,0.70390629,2530.3,2530.2,30.8902773]
[1749402157274,0.70390629,2530.3,2530.2,31.4002773]
[1749402157707,18.758,2530.6,2530.5,3.95178818]
[1749402157907,1.673,2530.6,2530.5,25.43680875]
[1749402158270,1.67916616,2531.2,2530.9,3.95114445]
[1749402158475,1.673,2531.1,2531.0,3.95087174]
[1749402158704,8.125,2531.1,2531.0,3.95087174]
[1749402159287,2.54566616,2531.2,2531.1,3.9508514]
[1749402159486,2.54566616,2531.2,2531.1,9.43587197]
[1749402160288,2.54566616,2531.2,2531.1,25.43587197]
[1749402161008,0.87266616,2531.2,2531.1,25.43587197]
[1749402161214,8.99766616,2531.2,2531.1,25.43587197]
[1749402161909,2.54566616,2531.2,2531.1,25.43587197]
[1749402165518,2.54566616,2531.2,2531.1,19.9508514]
[1749402171922,8.99566616,2531.2,2531.1,19.9508514]
[1749402174010,8.99566616,2531.2,2530.9,4.33797254]
[1749402174202,9.97504278,2531.2,2531.1,3.9508514]
[1749402175001,9.97504278,2531.2,2530.6,6.23992057]
[1749402175207,9.97504278,2531.2,2531.0,3.95093285]
[1749402175709,9.97504278,2531.2,2531.1,3.9508514]
[1749402177329,0.8121,2531.1,2531.0,19.9510075]
[1749402177516,1.80960428,2531.1,2531.0,19.9510075]
[1749402177896,0.8121,2531.1,2531.0,19.9510075]
[1749402179319,0.8121,2531.1,2531.0,16.0]
[1749402179515,0.8121,2531.1,2531.0,19.9510075]
[1749402181029,0.87266616,2531.2,2531.1,3.9508514]
[1749402181406,8.99466616,2531.2,2531.1,3.9508514]
[1749402184036,0.87266616,2531.2,2531.1,3.9508514]
[1749402184343,8.99466616,2531.2,2531.1,3.9508514]
[1749402184707,0.66666667,2531.5,2531.3,0.55]
[1749402184906,1.04142602,2532.1,2531.3,0.55]
[1749402184907,1.04142602,2532.1,2532.0,3.94944707]
[1749402185108,0.2330247,2532.4,2532.3,20.77977918]
[1749402185341,1.21018589,2533.1,2533.0,3.94788787]
[1749402185647,1.21018589,2533.1,2533.0,20.34485029]
[1749402186250,0.15982193,2533.6,2533.5,0.8308]
[1749402186632,1.83182193,2533.6,2533.5,16.0]
[1749402186843,1.83182193,2533.6,2533.4,16.0]
[1749402187005,2.74345412,2533.6,2533.2,16.0]
[1749402187210,1.07145412,2533.6,2533.2,19.9475557]
[1749402187412,1.07145412,2533.6,2532.9,0.8308]
[1749402187413,8.174,2533.5,2532.9,4.77881209]
[1749402187647,1.672,2533.4,2533.3,3.9473051]
[1749402188110,0.15982193,2533.6,2533.4,3.9472123]
[1749402188312,0.15982193,2533.6,2533.5,31.08373474]
[1749402188507,2.55436678,2534.0,2533.4,0.8308]
[1749402188714,2.55436678,2534.0,2533.2,0.60830435]
[1749402188715,3.33686678,2534.0,2533.2,16.0]
[1749402188950,3.33686678,2534.0,2533.5,16.0]
[1749402188951,6.561,2533.9,2533.5,16.0]
[1749402189650,6.561,2533.9,2533.3,3.94732418]
[1749402189821,0.98978668,2533.8,2533.3,3.94732418]
[1749402190010,0.98978668,2533.8,2533.2,16.0]
[1749402190207,0.98978668,2533.8,2533.2,19.94754562]
[1749402190411,0.98978668,2533.8,2533.2,16.0]
[1749402190753,0.75507867,2533.7,2533.1,0.8308]
[1749402190962,0.7976,2533.6,2532.3,0.19628506]
[1749402191112,0.7976,2533.6,2531.8,0.7599]
[1749402191113,0.7976,2533.6,2532.8,0.39578169]
[1749402191317,8.327,2533.5,2533.0,11.136626]
[1749402191520,9.23946,2533.4,2533.0,11.136626]
[1749402192056,0.91246,2533.4,2533.1,16.0]
[1749402192350,8.327,2533.3,2532.8,16.3908877]
[1749402192557,3.94826258,2532.8,2532.4,0.51]
[1749402192756,0.7976,2533.7,2532.7,11.136626]
[1749402192941,1.746,2533.2,2533.1,16.0]
[1749402193459,1.746,2533.2,2532.4,0.40154397]
[1749402193614,11.93168459,2533.1,2532.3,15.0855995]
[1749402193809,3.94790033,2533.0,2532.3,15.08554632]
[1749402194039,7.4146,2533.1,2532.2,0.7599]
[1749402194256,11.36237589,2533.1,2532.5,16.0]
[1749402194473,7.4146,2533.1,2532.5,3.94863327]
[1749402194647,1.31082455,2533.0,2532.5,3.94863327]
[1749402194820,1.31082455,2533.0,2532.4,19.94878006]
[1749402195014,1.31082455,2533.0,2532.4,19.94881315]
[1749402195233,1.31082455,2533.0,2532.5,3.9486414]
[1749402195440,8.362,2532.9,2532.7,3.94830038]
[1749402195756,4.74537066,2533.1,2532.5,3.94852791]
[1749402195926,0.7976,2533.1,2532.4,19.94881623]
[1749402196133,8.8345236,2533.0,2532.7,19.94825704]
[1749402196337,0.4745236,2533.0,2532.8,3.94819109]
[1749402196549,1.746,2532.9,2532.7,16.0]
[1749402196920,1.746,2532.9,2532.8,3.94819962]
[1749402197119,1.746,2532.9,2532.8,4.70989962]
[1749402197823,1.746,2532.9,2532.8,3.94819962]
[1749402200664,1.746,2532.9,2532.8,15.08482562]
[1749402200866,0.8129,2533.5,2533.2,3.94746969]
[1749402200867,6.612,2533.3,2533.2,3.94746969]
[1749402201051,9.10049,2533.3,2533.2,19.94746969]
[1749402202267,0.74249,2533.3,2533.2,19.94746969]
[1749402202438,0.8129,2533.9,2533.2,27.136626]
[1749402202638,1.746,2533.4,2533.3,3.94728132]
[1749402202878,0.8129,2533.9,2533.8,3.9466414]
[1749402203087,9.1689,2533.9,2533.6,16.0]
[1749402203282,11.88012668,2533.9,2533.7,3.94677256]
[1749402203637,11.88012668,2533.9,2533.6,19.94686735]
[1749402203948,11.88012668,2533.9,2533.5,16.0]
[1749402204286,11.88012668,2533.9,2533.5,19.94698107]
[1749402204629,11.88012668,2533.9,2533.5,16.0]
[1749402205069,2.98234935,2533.8,2533.5,16.0]
[1749402205382,2.98234935,2533.8,2533.6,3.94684527]
[1749402206587,2.98234935,2533.8,2533.3,19.9473033]
[1749402206885,2.98234935,2533.8,2533.6,16.0]
[1749402207182,2.98234935,2533.8,2533.6,19.94693793]
[1749402207381,9.1689,2533.9,2533.6,19.94693793]
[1749402207583,9.1689,2533.9,2533.6,3.94681781]
[1749402207947,8.347,2533.8,2533.6,3.94683643]
[1749402208146,8.347,2533.8,2533.3,16.0]
[1749402208147,8.347,2533.8,2533.7,3.94679717]
[1749402208351,8.347,2533.8,2533.3,16.0]
[1749402208564,8.347,2533.8,2533.6,3.94691991]
[1749402208779,8.347,2533.8,2533.1,16.0]
[1749402208964,8.347,2533.8,2533.5,16.0]
[1749402209159,12.29365148,2533.8,2533.5,16.0]
[1749402209481,11.84662803,2533.8,2533.5,16.0]
[1749402209649,11.84662803,2533.8,2532.9,1.2717]
[1749402209849,3.9470924,2533.6,2533.0,3.94780022]
[1749402210073,0.7579,2533.4,2533.0,3.94786467]
[1749402210284,1.88870568,2533.4,2533.1,3.94773064]
[1749402210451,0.7579,2533.4,2533.1,3.94773064]
[1749402210657,4.70519745,2533.4,2532.6,4.74055472]
[1749402210876,0.7579,2533.4,2532.7,3.94827554]
[1749402211079,4.71429496,2533.0,2532.3,3.94897918]
[1749402211280,8.351,2532.9,2532.2,12.32281462]
[1749402211493,8.351,2532.9,2532.5,19.94860991]
[1749402211686,8.351,2532.9,2532.7,3.94833225]
[1749402211906,0.7664,2533.0,2532.7,19.9483243]
[1749402212057,0.7664,2533.0,2532.9,3.94804374]
[1749402212253,9.1164,2533.0,2532.9,3.94804374]
[1749402212511,0.7664,2533.4,2533.0,3.94786817]
[1749402212817,0.7664,2533.4,2532.8,11.136626]
[1749402212980,0.7664,2533.4,2533.3,3.94742036]
[1749402213302,9.1164,2533.4,2533.3,3.94742036]
[1749402213998,8.349,2533.4,2533.3,3.94742036]
[1749402214700,1.31225627,2533.8,2533.4,3.94719261]
[1749402214865,8.353,2533.7,2533.5,3.94710874]
[1749402215071,8.353,2533.7,2533.6,3.94695295]
[1749402215465,0.7664,2533.9,2533.7,3.94669492]
[1749402215665,0.88236678,2534.0,2533.9,3.94648565]
[1749402215966,2.62836678,2534.0,2533.9,3.94648565]
[1749402216168,2.57836678,2534.0,2533.9,19.94648565]
[1749402216368,0.83236678,2534.0,2533.9,19.94648565]
[1749402216601,0.83236678,2534.0,2533.9,20.73688565]
[1749402218369,0.83236678,2534.0,2533.9,20.35106359]
[1749402225773,0.83236678,2534.0,2533.9,21.69146359]
[1749402225973,0.83236678,2534.0,2533.9,21.14146359]
[1749402226711,0.83236678,2534.0,2533.9,21.69146359]
[1749402228579,0.83236678,2534.0,2533.9,28.30246359]
[1749402230219,0.0058,2534.4,2534.3,19.94586276]
[1749402230587,0.0058,2534.4,2534.3,26.55586276]
[1749402230790,0.0058,2534.4,2534.3,37.69248876]
[1749402231525,0.0058,2534.4,2534.3,39.02438876]
[1749402231729,0.0058,2534.4,2534.3,39.46786746]
[1749402231942,0.0058,2534.4,2534.3,38.47838876]
[1749402232083,0.0058,2534.4,2534.3,38.47938876]
[1749402232477,0.0058,2534.4,2534.3,39.02938876]
[1749402233283,0.0058,2534.4,2534.3,38.47938876]
[1749402233839,0.0058,2534.4,2534.3,19.94586276]
[1749402235583,0.0058,2534.4,2534.3,26.55886276]
[1749402237721,0.0058,2534.4,2534.3,19.94586276]
[1749402239728,0.0058,2534.4,2534.3,24.64586276]
[1749402243839,0.0058,2534.4,2534.3,19.94586276]
[1749402245356,0.0058,2534.4,2534.0,0.51]
[1749402245659,0.0058,2534.4,2534.3,19.94586276]
[1749402246354,1.7698,2534.4,2534.3,19.94586276]
[1749402247716,0.0058,2534.4,2534.3,19.94586276]
[1749402252660,0.0058,2534.4,2534.3,16.0]
[1749402252959,0.8288,2534.4,2534.3,16.0]
[1749402253165,1.74718,2534.4,2534.3,16.0]
[1749402254329,0.8288,2534.4,2534.3,16.0]
[1749402257025,0.8288,2534.4,2534.0,3.94630658]
[1749402257230,0.8288,2534.4,2534.1,3.94612125]
[1749402257836,0.8288,2534.4,2534.0,16.0]
[1749402258167,0.8288,2534.4,2534.0,19.94623067]
[1749402258386,2.14174858,2534.4,2534.0,19.94623067]
[1749402259028,0.8071,2534.3,2534.1,3.94615878]
[1749402259279,0.8024,2534.1,2533.7,3.9466601]
[1749402259728,0.8024,2534.1,2533.8,3.94663735]
[1749402260167,0.8024,2534.1,2533.7,3.94671193]
[1749402260370,0.8024,2534.1,2533.8,3.94661653]
[1749402260731,1.93483424,2534.1,2533.7,3.94677974]
[1749402261141,1.93483424,2534.1,2533.5,9.41122016]
[1749402261142,5.88101206,2534.1,2533.6,3.94689124]
[1749402261340,1.93483424,2534.1,2533.5,5.46413178]
[1749402261540,1.93483424,2534.1,2533.7,3.94677002]
[1749402261746,1.93483424,2534.1,2533.7,9.4109018]
[1749402263341,1.93483424,2534.1,2533.7,9.41090519]
[1749402263537,0.8024,2534.1,2534.0,3.94632991]
[1749402263743,9.1244,2534.1,2534.0,3.94632991]
[1749402264970,0.0058,2534.4,2534.3,3.94586276]
[1749402265172,0.0058,2534.4,2534.3,9.40999454]
[1749402266075,0.0058,2534.4,2534.3,25.40999454]
[1749402266640,0.0058,2534.4,2534.3,26.18179454]
[1749402267048,0.0058,2534.4,2534.3,25.40999454]
[1749402267377,0.0058,2534.4,2534.3,19.94586276]
[1749402270644,0.0058,2534.4,2534.3,31.07104283]
[1749402280786,0.0058,2534.4,2534.3,31.85264283]
[1749402286905,0.0058,2534.4,2534.3,31.07104283]
[1749402287293,0.0058,2534.4,2534.3,25.40919667]
[1749402291707,0.0058,2534.4,2534.3,26.20619667]
[1749402293131,0.0058,2534.4,2534.3,30.90619667]
[1749402296826,0.0058,2534.4,2534.3,31.10350636]
[1749402297125,3.51373033,2534.9,2534.8,3.94508442]
[1749402300021,0.768,2534.8,2534.6,3.94525671]
[1749402300262,0.768,2534.8,2534.7,19.94524006]
[1749402301769,9.029,2534.8,2534.7,19.94524006]
[1749402303981,9.029,2534.8,2534.7,20.33969083]
[1749402305236,8.997119,2534.8,2534.7,20.33969083]
[1749402305431,10.17480393,2534.8,2534.7,19.94524006]
[1749402306273,8.997119,2534.8,2534.7,19.94524006]
[1749402306572,8.989119,2534.8,2534.7,19.94524006]
[1749402307837,3.94555824,2534.5,2533.9,3.94634435]
[1749402308058,8.314,2534.4,2534.0,19.94619108]
[1749402308213,6.581,2534.3,2534.2,3.94593881]
[1749402308559,7.376,2534.3,2534.2,3.94593881]
[1749402308726,0.795,2534.3,2534.2,3.94593881]
[1749402308892,8.316,2534.5,2534.2,16.0]
[1749402309226,6.583,2534.4,2534.3,19.94586276]
[1749402310698,1.78073033,2534.9,2534.5,3.94545478]
[1749402310699,0.795,2534.7,2534.5,3.94545478]
[1749402311000,8.316,2534.6,2534.5,3.94545478]
[1749402311800,0.795,2534.7,2534.5,3.94545478]
[1749402312032,8.314,2534.6,2534.4,3.94563647]
[1749402312532,8.314,2534.6,2534.5,3.94555139]
[1749402313607,8.314,2534.6,2534.4,3.94563251]
[1749402313796,8.314,2534.6,2534.5,3.94555139]
[1749402314196,8.314,2534.6,2534.4,3.94568333]
[1749402314397,0.795,2534.7,2534.4,3.94568333]
[1749402314606,8.321,2534.6,2534.3,19.94581887]
[1749402315640,8.321,2534.6,2534.4,3.94557324]
[1749402316027,1.747,2534.6,2534.5,3.94555139]
[1749402316222,8.318,2534.6,2534.5,3.94555139]
[1749402317609,8.318,2534.6,2534.4,3.94562854]
[1749402317935,8.318,2534.6,2534.3,19.94577532]
[1749402318137,8.318,2534.6,2534.4,3.94565903]
[1749402318540,8.318,2534.6,2534.4,3.94566281]
[1749402319837,9.2293,2534.6,2534.3,16.0]
[1749402320343,9.2293,2534.6,2534.3,19.94586175]
[1749402321336,9.2293,2534.6,2534.3,16.0]
[1749402321542,0.7881,2534.5,2534.3,16.0]
[1749402323411,0.7881,2534.5,2534.1,3.94610514]
[1749402323412,0.7881,2534.5,2534.2,16.0]
[1749402323612,1.39628705,2534.4,2534.2,16.0]
[1749402323825,0.7881,2534.2,2534.1,16.0]
[1749402324137,0.7881,2534.2,2534.0,19.94624359]
[1749402325259,0.7881,2534.2,2534.0,16.0]
[1749402325411,0.7881,2534.2,2534.0,19.94624277]
[1749402325844,0.7881,2534.2,2534.1,3.94617418]
[1749402326048,0.7881,2534.2,2534.1,19.94617418]
[1749402326634,0.7881,2534.2,2534.1,16.0]
[1749402327051,0.7881,2534.2,2534.1,19.94617418]
[1749402327825,0.7881,2534.2,2534.1,16.0]
[1749402327826,1.66263871,2534.2,2534.1,16.0]
[1749402328041,1.66263871,2534.2,2533.6,0.51]
[1749402328042,0.8046,2534.1,2533.6,0.51]
[1749402328367,0.8046,2534.1,2534.0,19.94632991]
[1749402328534,9.1046,2534.1,2534.0,19.94632991]
[1749402329627,9.1046,2534.1,2533.8,3.9465298]
[1749402330051,9.1046,2534.1,2533.5,21.46333391]
[1749402330052,9.1046,2534.1,2533.6,19.94695295]
[1749402330221,10.40965142,2534.1,2533.6,19.94695295]
[1749402330426,10.40965142,2534.1,2533.9,3.94639536]
[1749402330627,10.40965142,2534.1,2534.0,3.94632991]
[1749402331027,2.10965142,2534.1,2534.0,3.94632991]
[1749402331227,9.1016,2534.1,2534.0,3.94632991]
[1749402331781,9.1016,2534.1,2533.9,3.94641541]
[1749402334193,9.1016,2534.1,2533.8,19.94655659]
[1749402334398,9.1016,2534.1,2533.9,3.94643046]
[1749402335096,9.1016,2534.1,2533.8,19.94655365]
[1749402335284,10.04865763,2534.1,2533.8,19.94655365]
[1749402337189,0.8291,2534.0,2533.7,16.0]
[1749402337389,0.8291,2533.9,2533.6,16.0]
[1749402337694,0.8291,2533.7,2533.5,19.94710341]
[1749402337998,0.94705763,2534.1,2533.7,3.94670219]
[1749402338174,0.8291,2533.9,2533.7,3.94670219]
[1749402338696,8.289,2533.8,2533.5,5.46333391]
[1749402338922,8.289,2533.8,2533.7,3.94679717]
[1749402340083,0.8291,2533.9,2533.8,3.9466414]
[1749402340291,9.1181,2533.9,2533.8,3.9466414]
[1749402341295,0.8291,2533.9,2533.8,3.9466414]
[1749402341512,9.1151,2533.9,2533.8,3.9466414]
[1749402344504,0.7791,2534.2,2534.1,3.94617418]
[1749402344669,9.0361,2534.2,2534.1,3.94617418]
[1749402344865,0.7791,2534.2,2534.1,3.94617418]
[1749402345077,9.0361,2534.2,2534.1,3.94617418]
[1749402345577,1.723,2534.2,2534.1,3.94617418]
[1749402345788,8.255,2534.2,2534.1,3.94617418]
[1749402346104,0.7791,2534.4,2534.2,3.94590664]
[1749402346286,8.255,2534.3,2534.2,3.94590664]
[1749402346491,8.255,2534.3,2534.1,3.94617418]
[1749402346492,1.72345638,2534.8,2534.5,3.94544759]
[1749402346689,8.254,2534.7,2534.5,3.94544759]
[1749402347002,1.723,2534.7,2534.6,3.94539572]
[1749402347501,8.255,2534.7,2534.6,3.94539572]
[1749402348502,1.78073033,2534.9,2534.7,3.94524006]
[1749402348702,3.50273033,2534.9,2534.8,9.40841833]
[1749402349567,3.50273033,2534.9,2534.8,25.40841833]
[1749402350970,3.50273033,2534.9,2534.8,19.94508442]
[1749402352107,10.04173033,2534.9,2534.8,19.94508442]
[1749402352407,10.87253033,2534.9,2534.3,4.7]
[1749402352572,0.8308,2534.7,2534.3,3.9457947]
[1749402352768,6.54,2534.6,2534.4,3.94570539]
[1749402355305,6.54,2534.6,2533.7,3.94672585]
[1749402355479,6.54,2534.6,2534.3,16.0]
[1749402355680,1.13160622,2534.5,2534.3,16.0]
[1749402355879,0.8201,2534.4,2534.1,3.94604485]
[1749402356178,8.261,2534.3,2534.2,19.94593392]
[1749402356957,0.8201,2534.5,2534.4,3.94570707]
[1749402357118,9.0821,2534.5,2534.4,3.94570707]
[1749402357317,9.0821,2534.5,2534.2,19.94596529]
[1749402357519,9.0821,2534.5,2533.9,3.94648565]
[1749402357520,9.99031,2534.5,2533.9,3.94648565]
[1749402357740,9.99031,2534.5,2534.1,3.94604686]
[1749402358036,0.999031,2534.4,2534.1,3.94604686]
[1749402358236,0.999031,2534.4,2534.0,19.94627135]
[1749402358402,0.999031,2534.4,2534.0,16.0]
[1749402358603,8.262,2534.3,2534.2,3.94601846]
[1749402358841,0.8201,2534.5,2534.4,3.94570707]
[1749402359047,9.0821,2534.5,2534.4,3.94570707]
[1749402359409,9.0821,2534.5,2534.2,3.9459549]
[1749402359811,9.0821,2534.5,2534.4,3.94570707]
[1749402360214,8.262,2534.5,2534.4,3.94570707]
[1749402360408,8.263,2534.5,2534.2,3.94600867]
[1749402360609,8.263,2534.5,2534.4,3.94570707]
[1749402361236,0.8317,2534.7,2534.3,3.94586276]
[1749402361444,8.261,2534.6,2534.4,3.94563142]
[1749402361644,8.261,2534.6,2534.5,3.94555139]
[1749402362638,8.261,2534.6,2534.0,6.62921828]
[1749402362839,8.261,2534.6,2534.4,3.94570485]
[1749402363824,8.261,2534.6,2534.2,3.94601846]
[1749402364024,8.261,2534.6,2534.3,3.94585448]
[1749402364243,0.8317,2534.5,2534.2,16.0]
[1749402364418,1.30381888,2534.4,2534.2,19.94597924]
[1749402364622,6.536,2534.3,2534.2,19.94597924]
[1749402365044,1.722,2534.6,2534.5,3.94555139]
[1749402365251,8.257,2534.6,2534.5,3.94555139]
[1749402365468,1.722,2534.6,2534.5,3.94555139]
[1749402365750,8.258,2534.6,2534.5,3.94555139]
[1749402366654,8.256,2534.6,2534.5,3.94555139]
[1749402368638,1.78073033,2534.9,2534.8,3.94508442]
[1749402368875,10.03673033,2534.9,2534.8,3.94508442]
[1749402369787,1.78073033,2534.9,2534.8,32.75641833]
[1749402372267,0.999,2535.0,2534.9,20.49492879]
[1749402372466,0.999,2535.0,2534.9,21.77278152]
[1749402373406,0.81125718,2535.0,2534.9,21.77278152]
[1749402374297,0.62579651,2535.0,2534.9,21.77278152]
[1749402375008,0.46579651,2535.0,2534.9,21.77278152]
[1749402375784,0.46579651,2535.0,2534.9,21.22278152]
[1749402376003,0.46579651,2535.0,2534.9,20.75892879]
[1749402376371,0.46579651,2535.0,2534.9,4.75892879]
[1749402376771,0.46579651,2535.0,2534.9,20.75892879]
[1749402378592,0.46579651,2535.0,2534.9,19.94492879]
[1749402382490,0.46579651,2535.0,2534.9,20.74942879]
[1749402384715,0.20879576,2535.0,2534.9,27.91514513]
[1749402384915,0.20879576,2535.0,2534.9,27.30242879]
[1749402386934,0.20879576,2535.0,2534.9,27.85242879]
[1749402388115,0.0161677,2535.3,2535.2,3.94446197]
[1749402388430,0.0161677,2535.3,2535.2,26.20529588]
[1749402390136,1.7164655,2535.8,2535.7,4.75088418]
[1749402390468,1.7164655,2535.8,2535.7,26.21421809]
[1749402390636,1.7164655,2535.8,2535.7,25.40701809]
[1749402394767,1.7164655,2535.8,2535.7,25.8000813]
[1749402397564,1.7164655,2535.8,2535.7,19.94368418]
[1749402399031,1.7164655,2535.8,2535.7,20.34175494]
[1749402402441,1.7164655,2535.8,2535.2,0.51]
[1749402402640,9.0461655,2535.8,2535.5,3.94390797]
[1749402402866,9.0461655,2535.8,2535.6,3.94383648]
[1749402403064,9.0461655,2535.8,2535.6,16.0]
[1749402403776,9.0461655,2535.8,2535.6,3.94382688]
[1749402404581,9.0461655,2535.8,2535.6,16.0]
[1749402405083,9.49048874,2535.8,2535.6,19.94379475]
[1749402406354,0.8027,2535.7,2535.1,16.0]
[1749402406557,0.8027,2535.5,2535.2,3.94437795]
[1749402406789,6.532,2535.4,2535.2,3.94437795]
[1749402406991,6.532,2535.4,2535.3,16.0]
[1749402407780,6.532,2535.4,2535.3,3.94430639]
[1749402409560,0.8027,2535.5,2535.4,3.94415082]
[1749402409882,9.0527,2535.5,2535.4,3.94415082]
[1749402410049,9.0517,2535.5,2535.4,3.94415082]
[1749402411282,9.95687,2535.5,2535.4,3.94415082]
[1749402413249,1.70787,2535.5,2535.3,3.94421172]
[1749402413457,8.245,2535.4,2535.3,3.94421172]
[1749402415772,8.245,2535.4,2535.3,3.94430639]
[1749402416962,8.245,2535.4,2535.3,19.94430639]
[1749402418092,0.8027,2535.5,2535.4,3.94415082]
[1749402418293,19.20278874,2535.8,2535.6,3.94383972]
[1749402418294,0.8231,2535.7,2535.6,3.94383972]
[1749402418469,18.7584655,2535.8,2535.7,3.94368418]
[1749402418675,28.95562205,2535.8,2535.7,3.94368418]
[1749402419359,28.95562205,2535.8,2535.6,3.94382068]
[1749402419700,8.238,2535.7,2535.6,3.94382068]
[1749402419860,20.4814655,2535.8,2535.7,3.94368418]
[1749402420195,0.7573,2535.7,2535.5,3.94388721]
[1749402422701,0.7573,2535.7,2535.6,3.94383972]
[1749402423200,18.7584655,2535.8,2535.7,3.94368418]
[1749402423361,26.9994655,2535.8,2535.7,3.94368418]
[1749402423563,20.4814655,2535.8,2535.7,3.94368418]
[1749402423789,26.9994655,2535.8,2535.7,3.94368418]
[1749402424266,18.7584655,2535.8,2535.7,3.94368418]
[1749402424467,27.0014655,2535.8,2535.7,3.94368418]
[1749402424667,20.4814655,2535.8,2535.7,3.94368418]
[1749402424891,27.0014655,2535.8,2535.7,3.94368418]
[1749402425096,1.7164655,2535.8,2535.7,19.94368418]
[1749402425297,1.7164655,2535.8,2535.7,26.16611809]
[1749402425865,1.7164655,2535.8,2535.7,25.40701809]
[1749402426567,1.7164655,2535.8,2535.7,19.94368418]
[1749402429069,3.4394655,2535.8,2535.7,25.40701809]
[1749402430973,3.3394655,2535.8,2535.7,25.40701809]
[1749402431200,3.3394655,2535.8,2535.7,19.94368418]
[1749402435001,3.3394655,2535.8,2535.7,25.40701809]
[1749402437400,1.6164655,2535.8,2535.7,26.23521809]
[1749402437931,1.6164655,2535.8,2535.7,19.94368418]
[1749402438935,5.55999416,2535.8,2535.3,0.8282]
[1749402439148,0.8037,2535.7,2535.6,3.94383972]
[1749402439370,1.6164655,2535.8,2535.7,3.94368418]
[1749402439640,2.28959858,2535.8,2535.6,3.9438104]
[1749402440008,1.6164655,2535.8,2535.6,3.9438104]
[1749402440205,1.6164655,2535.8,2535.7,3.94368418]
[1749402440928,9.8274655,2535.8,2535.7,3.94368418]
[1749402442049,9.8274655,2535.8,2535.6,3.9437808]
[1749402442842,8.218,2535.7,2535.6,3.9437808]
[1749402443234,8.218,2535.7,2535.5,3.94394833]
[1749402443433,0.8198,2535.6,2535.5,3.94394833]
[1749402444511,8.218,2535.7,2535.6,3.94383972]
[1749402444954,2.4209655,2535.8,2535.6,3.94383972]
[1749402445110,8.215,2535.7,2535.6,3.94383972]
[1749402446513,2.4209655,2535.8,2535.7,3.94368418]
[1749402446737,10.6349655,2535.8,2535.7,3.94368418]
[1749402446933,10.6349655,2535.8,2535.6,3.94371522]
[1749402447147,10.6349655,2535.8,2535.7,3.94368418]
[1749402447331,9.8304655,2535.8,2535.7,3.94368418]
[1749402447848,9.8294655,2535.8,2535.7,3.94368418]
[1749402448015,9.8294655,2535.8,2535.6,3.94378244]
[1749402449237,0.8045,2535.7,2535.6,3.94383972]
[1749402449543,8.214,2535.7,2535.6,3.94383972]
[1749402450232,8.214,2535.7,2535.5,3.94395633]
[1749402450439,8.214,2535.7,2535.4,3.94409348]
[1749402450616,8.214,2535.7,2535.5,3.94391808]
[1749402450817,8.214,2535.7,2535.6,3.94383972]
[1749402451359,0.55,2535.2,2532.6,13.04836579]
[1749402451512,0.8045,2534.4,2533.5,5.46333391]
[1749402451714,6.643,2534.5,2534.1,5.46333391]
[1749402451920,6.643,2534.5,2534.3,5.46333391]
[1749402452621,6.643,2534.5,2534.3,9.40917882]
[1749402452845,6.643,2534.5,2534.3,5.46333391]
[1749402453730,6.643,2534.5,2534.3,9.40917578]
[1749402454048,6.643,2534.5,2534.3,5.46333391]
[1749402454414,6.643,2534.5,2534.1,5.46333391]
[1749402454649,7.58665872,2534.5,2533.7,5.46333391]
[1749402454850,7.58665872,2534.5,2533.7,9.41012893]
[1749402454851,11.53226592,2534.5,2533.7,9.41012893]
[1749402455222,3.94583344,2534.4,2533.7,5.46333391]
[1749402455756,3.94583344,2534.4,2533.8,16.0]
[1749402455971,1.06572481,2534.4,2533.7,5.46333391]
[1749402456251,5.0114465,2534.4,2533.7,5.46333391]
[1749402456452,5.0114465,2534.4,2533.3,6.21463391]
[1749402456453,0.8278,2534.3,2533.3,6.21463391]
[1749402456617,3.94659385,2533.9,2533.3,5.46333391]
[1749402456816,6.641,2533.8,2533.4,16.0]
[1749402457015,10.58768431,2533.8,2533.4,16.0]
[1749402457252,0.8278,2533.7,2533.3,5.46333391]
[1749402457426,0.8278,2533.7,2533.1,5.46333391]
[1749402457656,4.7746541,2533.7,2533.1,5.46333391]
[1749402457961,2.58178325,2533.7,2533.2,16.0]
[1749402458563,0.8278,2533.7,2533.4,16.0]
[1749402458724,9.2518,2533.7,2533.5,5.46333391]
[1749402461739,8.42,2534.0,2533.6,3.94695044]
[1749402461945,8.42,2534.0,2533.7,5.46333391]
[1749402462154,3.94613581,2534.2,2533.7,5.46333391]
[1749402462369,0.97707708,2534.2,2533.7,9.41012046]
[1749402462569,4.7590398,2534.3,2533.7,9.41004851]
[1749402462742,6.637,2534.2,2533.7,9.41004851]
[1749402463083,10.5830241,2534.2,2533.7,5.46333391]
[1749402463369,3.94622348,2534.1,2533.7,5.46333391]
[1749402465035,3.94635823,2534.0,2533.7,16.0]
[1749402465366,3.94643561,2534.0,2533.6,16.0]
[1749402466372,1.71262349,2534.1,2533.6,16.0]
[1749402466673,5.65881054,2534.1,2533.6,19.9468754]
[1749402467950,5.65881054,2534.1,2533.0,0.7513]
[1749402467951,0.7815,2533.8,2533.0,0.7513]
[1749402468158,12.35691288,2533.7,2533.0,16.7513]
[1749402468338,12.35691288,2533.7,2533.2,16.0]
[1749402468537,13.58529778,2533.7,2533.2,19.94754803]